fUST/lending_fUST_20241108
["ID","MTS","AMOUNT","RATE_DAILY","PERIOD"]
[341648218,1731059448683,-577.93965734,0.00022191,2]
[341648219,1731059448693,-500.0,0.00022191,2]
[341648220,1731059448703,-500.0,0.00022191,2]
[341648221,1731059448713,-500.0,0.00022191,2]
[341648222,1731059448723,-500.0,0.00022191,2]
[341648223,1731059448733,-500.0,0.00022191,2]
[341648224,1731059448742,-500.0,0.00022191,2]
[341648225,1731059448751,-487.27084624,0.00022191,2]
[341648226,1731059448761,-577.18,0.00022191,2]
[341648227,1731059448770,-500.0,0.00022191,2]
[341648228,1731059448780,-500.0,0.00022191,2]
[341648229,1731059448789,-500.0,0.00022191,2]
[341648230,1731059448799,-500.0,0.00022191,2]
[341648231,1731059448808,-500.0,0.00022191,2]
[341648232,1731059448818,-500.0,0.00022191,2]
[341648233,1731059448828,-410.06277266,0.00022191,2]
[341648234,1731059448838,-507.95479792,0.00022191,2]
[341648235,1731059448848,-500.0,0.00022191,2]
[341648236,1731059448861,-500.0,0.00022191,2]
[341648237,1731059448871,-500.0,0.00022191,2]
[341648238,1731059448880,-500.0,0.00022191,2]
[341648239,1731059448890,-500.0,0.00022191,2]
[341648240,1731059448900,-1101.38,0.00022191,2]
[341648241,1731059448910,-500.0,0.00022191,2]
[341648242,1731059448919,-500.0,0.00022191,2]
[341648243,1731059448929,-500.0,0.00022191,2]
[341648244,1731059448939,-500.0,0.00022191,2]
[341648245,1731059448949,-500.0,0.00022191,2]
[341648246,1731059448960,-500.0,0.00022191,2]
[341648247,1731059448970,-500.0,0.00022191,2]
[341648248,1731059448980,-500.0,0.00022191,2]
[341648249,1731059448990,-500.0,0.00022191,2]
[341648250,1731059448999,-500.0,0.00022191,2]
[341648251,1731059449009,-500.0,0.00022191,2]
[341648252,1731059449019,-500.0,0.00022191,2]
[341648253,1731059449028,-500.0,0.00022191,2]
[341648254,1731059449038,-500.0,0.00022191,2]
[341648255,1731059449049,-500.0,0.00022191,2]
[341648256,1731059449058,-1916.43,0.00022191,2]
[341648257,1731059449068,-500.0,0.00022191,2]
[341648258,1731059449077,-500.0,0.00022191,2]
[341648259,1731059449088,-500.0,0.00022191,2]
[341648260,1731059449100,-500.0,0.00022191,2]
[341648261,1731059449112,-500.0,0.00022191,2]
[341648262,1731059449122,-1071.92,0.00022191,2]
[341648263,1731059449132,-500.0,0.00022191,2]
[341648264,1731059449142,-500.0,0.00022191,2]
[341648265,1731059449152,-500.0,0.00022191,2]
[341648266,1731059449163,-500.0,0.00022191,2]
[341648267,1731059449174,-1373.22,0.00022191,2]
[341648268,1731059449185,-500.0,0.00022191,2]
[341648269,1731059449195,-500.0,0.00022191,2]
[341648270,1731059449206,-500.0,0.00022191,2]
[341648271,1731059449216,-500.0,0.00022191,2]
[341648272,1731059449226,-500.0,0.00022191,2]
[341648273,1731059449235,-4923.93,0.00022191,2]
[341648274,1731059449246,-208.677852,0.00022208,2]
[341648275,1731059449255,-500.0,0.00022463,2]
[341648276,1731059449266,-500.0,0.00022464,2]
[341648277,1731059449275,-500.0,0.00022464,2]
[341648278,1731059449285,-198.52733126,0.00022464,2]
[341648279,1731059449295,-500.0,0.00022465,2]
[341648280,1731059449304,-500.0,0.00022465,2]
[341648281,1731059449313,-500.0,0.00022465,2]
[341648282,1731059449323,-500.0,0.00022465,2]
[341648283,1731059449333,-500.0,0.00022465,2]
[341648284,1731059449342,-500.0,0.00022465,2]
[341648285,1731059449352,-500.0,0.00022465,2]
[341648286,1731059449363,-500.0,0.00022465,2]
[341648287,1731059449373,-500.0,0.00022465,2]
[341648288,1731059449383,-500.0,0.00022465,2]
[341648289,1731059449392,-500.0,0.00022465,2]
[341648290,1731059449402,-500.0,0.00022465,2]
[341648291,1731059449412,-500.0,0.00022465,2]
[341648292,1731059449422,-500.0,0.00022465,2]
[341648293,1731059449431,-500.0,0.00022465,2]
[341648294,1731059449441,-270.13826624,0.00022465,2]
[341648295,1731059449451,-500.0,0.00022465,2]
[341648296,1731059449460,-500.0,0.00022465,2]
[341648297,1731059449470,-500.0,0.00022465,2]
[341648298,1731059449480,-500.0,0.00022465,2]
[341648299,1731059449489,-500.0,0.00022465,2]
[341648300,1731059449499,-501.65195619,0.00022465,2]
[341648301,1731059449509,-500.0,0.00022465,2]
[341648302,1731059449518,-377.18884709,0.00022465,2]
[341648303,1731059449528,-500.0,0.00022465,2]
[341648304,1731059449538,-500.0,0.00022465,2]
[341648305,1731059449548,-500.0,0.00022465,2]
[341648306,1731059449557,-284.31287685,0.00022465,2]
[341648307,1731059449567,-500.0,0.00022465,2]
[341648308,1731059449576,-500.0,0.00022465,2]
[341648309,1731059449585,-500.0,0.00022465,2]
[341648310,1731059449595,-500.0,0.00022465,2]
[341648311,1731059449604,-500.0,0.00022465,2]
[341648312,1731059449615,-500.0,0.00022465,2]
[341648313,1731059449626,-500.0,0.00022465,2]
[341648314,1731059449636,-500.0,0.00022465,2]
[341648315,1731059449646,-500.0,0.00022465,2]
[341648316,1731059449655,-500.0,0.00022465,2]
[341648317,1731059449664,-500.0,0.00022465,2]
[341648318,1731059449674,-686.57,0.00022465,2]
[341648319,1731059449683,-500.0,0.00022465,2]
[341648320,1731059449693,-617.53453115,0.00022465,2]
[341648321,1731059449703,-500.0,0.00022465,2]
[341648322,1731059449712,-500.0,0.00022465,2]
[341648323,1731059449722,-500.0,0.00022465,2]
[341648324,1731059449731,-500.0,0.00022465,2]
[341648325,1731059449740,-500.0,0.00022465,2]
[341648326,1731059449749,-577.18,0.00022465,2]
[341648327,1731059449759,-500.0,0.00022465,2]
[341648328,1731059449768,-500.0,0.00022465,2]
[341648329,1731059449778,-500.0,0.00022465,2]
[341648330,1731059449787,-500.0,0.00022465,2]
[341648331,1731059449797,-500.0,0.00022465,2]
[341648332,1731059449806,-500.0,0.00022465,2]
[341648333,1731059449816,-500.0,0.00022465,2]
[341648334,1731059449825,-430.11521447,0.00022465,2]
[341648335,1731059449835,-500.0,0.00022465,2]
[341648336,1731059449844,-500.0,0.00022465,2]
[341648337,1731059449854,-1101.38,0.00022465,2]
[341648338,1731059449865,-500.0,0.00022465,2]
[341648339,1731059449874,-500.0,0.00022465,2]
[341648340,1731059449884,-500.0,0.00022465,2]
[341648341,1731059449893,-500.0,0.00022465,2]
[341648342,1731059449903,-500.0,0.00022465,2]
[341648343,1731059449912,-500.0,0.00022465,2]
[341648344,1731059449921,-544.36671135,0.00022465,2]
[341648345,1731059449930,-500.0,0.00022465,2]
[341648346,1731059449940,-577.92700019,0.00022465,2]
[341648347,1731059449950,-500.0,0.00022465,2]
[341648348,1731059449959,-500.0,0.00022465,2]
[341648349,1731059449968,-500.0,0.00022465,2]
[341648350,1731059449977,-500.0,0.00022465,2]
[341648351,1731059449987,-500.0,0.00022465,2]
[341648352,1731059449996,-1916.43,0.00022465,2]
[341648353,1731059450005,-500.0,0.00022465,2]
[341648354,1731059450014,-198.1197467,0.00022465,2]
[341648355,1731059450024,-500.0,0.00022465,2]
[341648356,1731059450033,-500.0,0.00022465,2]
[341648357,1731059450042,-500.0,0.00022465,2]
[341648358,1731059450051,-1071.92,0.00022465,2]
[341648359,1731059450060,-500.0,0.00022465,2]
[341648360,1731059450069,-500.0,0.00022465,2]
[341648361,1731059450078,-541.66879555,0.00022465,2]
[341648362,1731059450090,-500.0,0.00022465,2]
[341648363,1731059450101,-1373.22,0.00022465,2]
[341648364,1731059450110,-500.0,0.00022465,2]
[341648365,1731059450120,-500.0,0.00022465,2]
[341648366,1731059450131,-500.0,0.00022465,2]
[341648367,1731059450140,-500.0,0.00022465,2]
[341648368,1731059450150,-500.0,0.00022465,2]
[341648369,1731059450160,-4923.93,0.00022465,2]
[341648370,1731059450171,-500.0,0.00022473,2]
[341648371,1731059450181,-244.74486853,0.00022502,2]
[341648372,1731059450191,-154.68825,0.00022704,2]
[341648373,1731059450201,-500.0,0.00022738,2]
[341648374,1731059450210,-500.0,0.00022738,2]
[341648375,1731059450219,-500.0,0.00022739,2]
[341648376,1731059450229,-432.18017343,0.00022739,2]
[341648377,1731059450238,-484.02,0.00022739,2]
[341648378,1731059450248,-500.0,0.00022739,2]
[341648379,1731059450257,-500.0,0.00022739,2]
[341648380,1731059450266,-500.0,0.00022739,2]
[341648381,1731059450276,-500.0,0.00022739,2]
[341648382,1731059450285,-500.0,0.00022739,2]
[341648383,1731059450295,-500.0,0.00022739,2]
[341648384,1731059450304,-584.74606717,0.00022739,2]
[341648385,1731059450316,-500.0,0.00022739,2]
[341648386,1731059450326,-404.90177935,0.00022739,2]
[341648387,1731059450335,-500.0,0.00022739,2]
[341648388,1731059450345,-500.0,0.00022739,2]
[341648389,1731059450355,-500.0,0.00022739,2]
[341648390,1731059450365,-500.0,0.00022739,2]
[341648391,1731059450375,-500.0,0.00022739,2]
[341648392,1731059450384,-500.0,0.00022739,2]
[341648393,1731059450393,-500.0,0.00022739,2]
[341648394,1731059450403,-142.09036561,0.00022739,2]
[341648398,1731059733315,847.04553,0.00020761,2]
[341648402,1731059839469,194.54864158,0.00020785,2]
[341648403,1731059895760,2225.6465291,0.00020628,2]
[341648407,1731059941899,6509.8239144,0.00020628,2]
[341648414,1731059977308,1353.246931,0.00020628,2]
[341648415,1731060017914,173.50667,0.00020628,2]
[341648416,1731060018148,173.50667,0.00020731,2]
[341648417,1731060024503,694.44444444,0.00020843,2]
[341648420,1731060084409,250.0,0.00020727,2]
[341648421,1731060086349,200.3945,0.00020408,2]
[341648423,1731060171976,24900.0,0.00020695,2]
[341648424,1731060222934,195.11078,0.00020411,2]
[341648427,1731060236445,166.305324,0.00013973,2]
[341648428,1731060242406,6249.659091,0.00020674,2]
[341648430,1731060388366,3000.0,0.00020728,2]
[341648431,1731060390775,862.6235505,0.00020728,2]
[341648433,1731060436446,423.522765,0.00020724,2]
[341648464,1731060632350,-694.44444444,0.00020853,2]
[341648466,1731060632360,-201.616395,0.00020885,2]
[341648468,1731060632369,-428.6661847,0.00020893,2]
[341648470,1731060632379,-2302.1145944,0.00020894,2]
[341648471,1731060632388,-300.0,0.00021358,2]
[341648472,1731060632398,-300.0,0.00021358,2]
[341648473,1731060632407,-6249.659091,0.00021359,2]
[341648474,1731060632417,-187.51,0.00021807,2]
[341648475,1731060632427,-429.49861185,0.00021816,2]
[341648476,1731060632436,-1349.56685735,0.00021817,2]
[341648477,1731060632446,-1349.56685734,0.00021886,2]
[341648478,1731060632456,-187.51,0.00021907,2]
[341648479,1731060632469,-196.69,0.00021907,3]
[341648480,1731060632478,-163.91,0.00021907,3]
[341648481,1731060632488,-491.77,0.00021907,3]
[341648482,1731060632498,-770.48576078,0.00021915,2]
[341648483,1731060632510,-511.03652782,0.00021915,2]
[341648484,1731060632520,-658.26696918,0.00021916,2]
[341648485,1731060632530,-226.59276956,0.00021916,2]
[341648486,1731060632541,-216.29804122,0.00021916,2]
[341648487,1731060632551,-162.99253494,0.00021916,2]
[341648488,1731060632560,-404.84122789,0.00021916,2]
[341648489,1731060632570,-500.0,0.00021916,2]
[341648490,1731060632579,-258.52968848,0.00021916,2]
[341648491,1731060632589,-273.2136844,0.00021916,2]
[341648492,1731060632598,-500.0,0.00021916,2]
[341648493,1731060632608,-500.0,0.00021916,2]
[341648494,1731060632617,-513.24148361,0.00021916,2]
[341648495,1731060632628,-500.0,0.00021916,2]
[341648496,1731060632637,-500.0,0.00021916,2]
[341648497,1731060632647,-500.0,0.00021916,2]
[341648498,1731060632656,-500.0,0.00021916,2]
[341648499,1731060632666,-500.0,0.00021916,2]
[341648500,1731060632677,-500.0,0.00021916,2]
[341648501,1731060632687,-500.0,0.00021916,2]
[341648502,1731060632697,-184.80618646,0.00021916,2]
[341648503,1731060632707,-500.0,0.00021916,2]
[341648504,1731060632717,-500.0,0.00021916,2]
[341648505,1731060632727,-500.0,0.00021916,2]
[341648506,1731060632736,-500.0,0.00021916,2]
[341648507,1731060632745,-500.0,0.00021916,2]
[341648508,1731060632755,-500.0,0.00021916,2]
[341648509,1731060632764,-500.0,0.00021916,2]
[341648510,1731060632773,-327.0,0.00021916,2]
[341648511,1731060632783,-500.0,0.00021916,2]
[341648512,1731060632793,-500.0,0.00021916,2]
[341648513,1731060632802,-500.0,0.00021916,2]
[341648514,1731060632811,-500.0,0.00021916,2]
[341648515,1731060632821,-500.0,0.00021916,2]
[341648516,1731060632831,-500.0,0.00021916,2]
[341648517,1731060632840,-500.0,0.00021916,2]
[341648518,1731060632850,-500.0,0.00021916,2]
[341648519,1731060632860,-500.0,0.00021916,2]
[341648520,1731060632870,-500.0,0.00021916,2]
[341648521,1731060632879,-500.0,0.00021916,2]
[341648522,1731060632889,-500.0,0.00021916,2]
[341648523,1731060632899,-500.0,0.00021916,2]
[341648524,1731060632908,-500.0,0.00021916,2]
[341648525,1731060632918,-500.0,0.00021916,2]
[341648526,1731060632927,-500.0,0.00021916,2]
[341648527,1731060632936,-500.0,0.00021916,2]
[341648528,1731060632946,-500.0,0.00021916,2]
[341648529,1731060632955,-500.0,0.00021916,2]
[341648530,1731060632964,-161.6159342,0.00021916,2]
[341648531,1731060632974,-500.0,0.00021916,2]
[341648532,1731060632983,-500.0,0.00021916,2]
[341648533,1731060632994,-500.0,0.00021916,2]
[341648534,1731060633004,-379.66758359,0.00021916,2]
[341648535,1731060633013,-158.35486355,0.00021916,2]
[341648536,1731060633023,-500.0,0.00021916,2]
[341648537,1731060633034,-500.0,0.00021916,2]
[341648538,1731060633044,-159.38982496,0.00021916,2]
[341648539,1731060633054,-500.0,0.00021916,2]
[341648540,1731060633065,-500.0,0.00021916,2]
[341648541,1731060633075,-500.0,0.00021916,2]
[341648542,1731060633089,-500.0,0.00021916,2]
[341648543,1731060633099,-500.0,0.00021916,2]
[341648544,1731060633109,-500.0,0.00021916,2]
[341648545,1731060633119,-500.0,0.00021916,2]
[341648546,1731060633129,-500.0,0.00021916,2]
[341648547,1731060633140,-339.71759122,0.00021916,2]
[341648548,1731060633149,-500.0,0.00021916,2]
[341648549,1731060633159,-539.68313393,0.00021916,2]
[341648550,1731060633169,-500.0,0.00021916,2]
[341648551,1731060633178,-500.0,0.00021916,2]
[341648552,1731060633188,-409.13606638,0.00021916,2]
[341648553,1731060633198,-500.0,0.00021916,2]
[341648554,1731060633207,-500.0,0.00021916,2]
[341648555,1731060633217,-500.0,0.00021916,2]
[341648556,1731060633227,-500.0,0.00021916,2]
[341648557,1731060633236,-500.0,0.00021916,2]
[341648558,1731060633246,-500.0,0.00021916,2]
[341648559,1731060633255,-500.0,0.00021916,2]
[341648560,1731060633264,-500.0,0.00021916,2]
[341648561,1731060633274,-500.0,0.00021916,2]
[341648562,1731060633283,-500.0,0.00021916,2]
[341648563,1731060633291,-500.0,0.00021916,2]
[341648564,1731060633301,-500.0,0.00021916,2]
[341648565,1731060633310,-500.0,0.00021916,2]
[341648566,1731060633320,-500.0,0.00021916,2]
[341648567,1731060633332,-500.0,0.00021916,2]
[341648568,1731060633342,-500.0,0.00021916,2]
[341648569,1731060633352,-500.0,0.00021916,2]
[341648570,1731060633362,-500.0,0.00021916,2]
[341648571,1731060633372,-434.5084246,0.00021916,2]
[341648572,1731060633383,-500.0,0.00021916,2]
[341648573,1731060633393,-500.0,0.00021916,2]
[341648574,1731060633404,-500.0,0.00021916,2]
[341648575,1731060633415,-500.0,0.00021916,2]
[341648576,1731060633425,-500.0,0.00021916,2]
[341648577,1731060633435,-500.0,0.00021916,2]
[341648578,1731060633444,-500.0,0.00021916,2]
[341648579,1731060633454,-500.0,0.00021916,2]
[341648580,1731060633469,-500.0,0.00021916,2]
[341648581,1731060633478,-500.0,0.00021916,2]
[341648582,1731060633488,-500.0,0.00021916,2]
[341648583,1731060633498,-500.0,0.00021916,2]
[341648584,1731060633509,-500.0,0.00021916,2]
[341648585,1731060633518,-500.0,0.00021917,2]
[341648586,1731060633528,-500.0,0.00021917,2]
[341648587,1731060633541,-500.0,0.00021917,2]
[341648588,1731060633551,-500.0,0.00021917,2]
[341648589,1731060633561,-500.0,0.00021917,2]
[341648590,1731060633571,-523.88989039,0.00021917,2]
[341648591,1731060633585,-500.0,0.00021917,2]
[341648592,1731060633595,-500.0,0.00021917,2]
[341648593,1731060633604,-500.0,0.00021917,2]
[341648594,1731060633613,-500.0,0.00021917,2]
[341648595,1731060633623,-500.0,0.00021917,2]
[341648596,1731060633633,-500.0,0.00021917,2]
[341648597,1731060633643,-500.0,0.00021917,2]
[341648598,1731060633652,-500.0,0.00021917,2]
[341648599,1731060633661,-500.0,0.00021917,2]
[341648600,1731060633671,-500.0,0.00021917,2]
[341648601,1731060633680,-500.0,0.00021917,2]
[341648602,1731060633689,-311.76168722,0.00021917,2]
[341648603,1731060633698,-500.0,0.00021917,2]
[341648604,1731060633707,-500.0,0.00021917,2]
[341648605,1731060633718,-500.0,0.00021917,2]
[341648606,1731060633727,-500.0,0.00021917,2]
[341648607,1731060633736,-500.0,0.00021917,2]
[341648608,1731060633745,-500.0,0.00021917,2]
[341648609,1731060633754,-500.0,0.00021917,2]
[341648610,1731060633763,-500.0,0.00021917,2]
[341648611,1731060633772,-500.0,0.00021917,2]
[341648612,1731060633782,-502.79002658,0.00021917,2]
[341648613,1731060633791,-500.0,0.00021917,2]
[341648614,1731060633800,-500.0,0.00021917,2]
[341648615,1731060633810,-514.34053155,0.00021917,2]
[341648616,1731060633820,-504.83627988,0.00021917,2]
[341648617,1731060633831,-500.0,0.00021917,2]
[341648618,1731060633840,-500.0,0.00021917,2]
[341648619,1731060633850,-501.65530863,0.00021917,2]
[341648620,1731060633860,-500.0,0.00021917,2]
[341648621,1731060633870,-500.0,0.00021917,2]
[341648622,1731060633879,-500.0,0.00021917,2]
[341648623,1731060633889,-500.0,0.00021917,2]
[341648624,1731060633898,-500.0,0.00021917,2]
[341648625,1731060633908,-645.75798579,0.00021917,2]
[341648626,1731060633917,-505.00660777,0.00021917,2]
[341648627,1731060633927,-500.0,0.00021917,2]
[341648628,1731060633936,-500.0,0.00021917,2]
[341648629,1731060633946,-528.6561204,0.00021917,2]
[341648630,1731060633956,-500.0,0.00021917,2]
[341648631,1731060633966,-500.0,0.00021917,2]
[341648632,1731060633975,-500.0,0.00021917,2]
[341648633,1731060633985,-500.0,0.00021917,2]
[341648634,1731060633994,-526.68338123,0.00021917,2]
[341648635,1731060634003,-500.0,0.00021917,2]
[341648636,1731060634013,-500.0,0.00021917,2]
[341648637,1731060634022,-500.0,0.00021917,2]
[341648638,1731060634032,-500.0,0.00021917,2]
[341648639,1731060634041,-500.0,0.00021917,2]
[341648640,1731060634051,-500.0,0.00021917,2]
[341648641,1731060634060,-500.0,0.00021917,2]
[341648642,1731060634070,-500.0,0.00021917,2]
[341648643,1731060634080,-500.0,0.00021917,2]
[341648644,1731060634089,-500.0,0.00021917,2]
[341648645,1731060634099,-500.0,0.00021917,2]
[341648646,1731060634108,-500.0,0.00021917,2]
[341648647,1731060634118,-500.0,0.00021917,2]
[341648648,1731060634127,-523.63036191,0.00021917,2]
[341648649,1731060634136,-502.88650302,0.00021917,2]
[341648650,1731060634146,-505.79814864,0.00021917,2]
[341648651,1731060634155,-500.0,0.00021917,2]
[341648652,1731060634164,-471.35468378,0.00021917,2]
[341648653,1731060634174,-500.0,0.00021917,2]
[341648654,1731060634183,-500.0,0.00021917,2]
[341648655,1731060634193,-500.0,0.00021917,2]
[341648656,1731060634202,-501.4261006,0.00021917,2]
[341648657,1731060634211,-500.0,0.00021917,2]
[341648658,1731060634221,-500.0,0.00021917,2]
[341648659,1731060634230,-506.28046238,0.00021917,2]
[341648660,1731060634239,-512.56211605,0.00021917,2]
[341648661,1731060634248,-616.67115962,0.00021917,2]
[341648662,1731060634257,-500.0,0.00021917,2]
[341648663,1731060634267,-500.0,0.00021917,2]
[341648664,1731060634276,-500.0,0.00021917,2]
[341648665,1731060634286,-500.0,0.00021917,2]
[341648666,1731060634295,-500.0,0.00021917,2]
[341648667,1731060634304,-503.48742635,0.00021917,2]
[341648668,1731060634314,-500.0,0.00021917,2]
[341648669,1731060634323,-500.0,0.00021917,2]
[341648670,1731060634335,-499.76,0.00021917,2]
[341648671,1731060634344,-517.89652322,0.00021917,2]
[341648672,1731060634354,-500.0,0.00021917,2]
[341648673,1731060634364,-538.20737712,0.00021917,2]
[341648674,1731060634374,-500.0,0.00021917,2]
[341648675,1731060634383,-513.30818483,0.00021917,2]
[341648676,1731060634392,-515.07314883,0.00021917,2]
[341648677,1731060634505,-500.0,0.00021917,2]
[341648678,1731060634518,-260.01718152,0.00021917,2]
[341648679,1731060634527,-505.6070616,0.00021917,2]
[341648680,1731060634538,-500.0,0.00021917,2]
[341648681,1731060634547,-526.58737329,0.00021917,2]
[341648682,1731060634557,-509.50870437,0.00021917,2]
[341648683,1731060634567,-503.88918322,0.00021917,2]
[341648684,1731060634577,-515.19914335,0.00021917,2]
[341648685,1731060634587,-504.85626536,0.00021917,2]
[341648686,1731060634596,-534.9169993,0.00021917,2]
[341648687,1731060634606,-500.0,0.00021917,2]
[341648688,1731060634616,-500.0,0.00021917,2]
[341648689,1731060634626,-522.0058673,0.00021917,2]
[341648690,1731060634635,-500.0,0.00021917,2]
[341648691,1731060634645,-500.0,0.00021917,2]
[341648692,1731060634654,-500.0,0.00021917,2]
[341648693,1731060634664,-500.0,0.00021917,2]
[341648694,1731060634673,-500.0,0.00021917,2]
[341648695,1731060634683,-518.56253886,0.00021917,2]
[341648696,1731060634693,-502.83661759,0.00021917,2]
[341648697,1731060634702,-511.45859781,0.00021917,2]
[341648698,1731060634711,-505.14192693,0.00021917,2]
[341648699,1731060634722,-503.02156186,0.00021917,2]
[341648700,1731060634731,-500.0,0.00021917,2]
[341648701,1731060634740,-503.704676,0.00021917,2]
[341648702,1731060634750,-500.0,0.00021917,2]
[341648703,1731060634759,-520.45694538,0.00021917,2]
[341648704,1731060634768,-504.39993461,0.00021917,2]
[341648705,1731060634777,-500.0,0.00021917,2]
[341648706,1731060634786,-500.0,0.00021917,2]
[341648707,1731060634795,-500.0,0.00021917,2]
[341648708,1731060634804,-500.0,0.00021917,2]
[341648709,1731060634814,-511.7697403,0.00021917,2]
[341648710,1731060634823,-500.0,0.00021917,2]
[341648711,1731060634835,-503.84188911,0.00021917,2]
[341648712,1731060634844,-500.0,0.00021917,2]
[341648713,1731060634853,-506.45023781,0.00021917,2]
[341648714,1731060634862,-500.0,0.00021917,2]
[341648715,1731060634872,-500.0,0.00021917,2]
[341648716,1731060634881,-500.0,0.00021917,2]
[341648717,1731060634892,-500.0,0.00021917,2]
[341648718,1731060634901,-500.0,0.00021917,2]
[341648719,1731060634910,-500.0,0.00021917,2]
[341648720,1731060634919,-500.0,0.00021917,2]
[341648721,1731060634928,-500.0,0.00021917,2]
[341648722,1731060634937,-640.34852633,0.00021917,2]
[341648723,1731060634946,-518.63980509,0.00021917,2]
[341648724,1731060634956,-509.24037744,0.00021917,2]
[341648725,1731060634965,-365.72498182,0.00021917,2]
[341648726,1731060634974,-534.7672798,0.00021917,2]
[341648727,1731060634983,-513.54100423,0.00021917,2]
[341648728,1731060634992,-500.0,0.00021917,2]
[341648729,1731060635001,-507.28886515,0.00021917,2]
[341648730,1731060635010,-503.99723924,0.00021917,2]
[341648731,1731060635019,-500.0,0.00021917,2]
[341648732,1731060635029,-500.0,0.00021917,2]
[341648733,1731060635038,-519.82112129,0.00021917,2]
[341648734,1731060635047,-500.0,0.00021917,2]
[341648735,1731060635056,-500.0,0.00021917,2]
[341648736,1731060635065,-500.0,0.00021917,2]
[341648737,1731060635074,-500.0,0.00021917,2]
[341648738,1731060635084,-508.78879154,0.00021917,2]
[341648739,1731060635094,-516.22694584,0.00021917,2]
[341648740,1731060635102,-500.0,0.00021917,2]
[341648741,1731060635112,-500.0,0.00021917,2]
[341648742,1731060635121,-500.0,0.00021917,2]
[341648743,1731060635130,-502.79071255,0.00021917,2]
[341648744,1731060635139,-500.0,0.00021917,2]
[341648745,1731060635148,-536.97697647,0.00021917,2]
[341648746,1731060635157,-514.87269538,0.00021917,2]
[341648747,1731060635167,-500.0,0.00021917,2]
[341648748,1731060635175,-500.0,0.00021917,2]
[341648749,1731060635184,-500.0,0.00021917,2]
[341648750,1731060635194,-425.58043205,0.00021917,2]
[341648751,1731060635203,-500.0,0.00021917,2]
[341648752,1731060635213,-511.78385707,0.00021917,2]
[341648753,1731060635223,-561.13882929,0.00021917,2]
[341648754,1731060635233,-500.0,0.00021917,2]
[341648755,1731060635243,-500.0,0.00021917,2]
[341648756,1731060635252,-511.68019189,0.00021917,2]
[341648757,1731060635261,-500.0,0.00021917,2]
[341648758,1731060635270,-616.19,0.00021917,2]
[341648759,1731060635279,-508.21226779,0.00021917,2]
[341648760,1731060635288,-500.0,0.00021917,2]
[341648761,1731060635298,-500.0,0.00021917,2]
[341648762,1731060635307,-500.0,0.00021917,2]
[341648763,1731060635316,-500.0,0.00021917,2]
[341648764,1731060635325,-500.0,0.00021917,2]
[341648765,1731060635335,-500.0,0.00021917,2]
[341648766,1731060635345,-512.25000857,0.00021917,2]
[341648767,1731060635353,-510.4704271,0.00021917,2]
[341648768,1731060635363,-503.52978186,0.00021917,2]
[341648769,1731060635372,-500.0,0.00021917,2]
[341648770,1731060635381,-500.0,0.00021917,2]
[341648771,1731060635390,-510.85489567,0.00021917,2]
[341648772,1731060635399,-511.07489608,0.00021917,2]